[Event "Titled Tuesday Blitz July 11 Early 2023"]
[White "Parpiev, Isaak"]
[Black "Khromkin, Andrey"]
[WhiteFideId "34281576"]
[BlackFideId "4154126"]
[WhiteElo "2573"]
[BlackElo "2434"]
[Result "1-0"]
[Round "11"]
[TimeControl "180+2"]
[Date "2023.07.11"]
[WhiteClock "0:00:35"]
[BlackClock "0:00:00"]
[Board "77"]

1. d4 {[%clk 0:02:59]}  d5 {[%clk 0:02:57]} 2. c4 {[%clk 0:02:59]}  dxc4 {[%clk 0:02:57]} 3. e4 {[%clk 0:02:59]}  e5 {[%clk 0:02:55]} 4. Nf3 {[%clk 0:02:58]}  exd4 {[%clk 0:02:54]} 5. Bxc4 {[%clk 0:02:59]}  Bb4+ {[%clk 0:02:54]} 6. Nbd2 {[%clk 0:02:54]}  Nc6 {[%clk 0:02:53]} 7. O-O {[%clk 0:02:53]}  Qf6 {[%clk 0:02:53]} 8. h3 {[%clk 0:02:48]}  Nge7 {[%clk 0:02:52]} 9. Nb3 {[%clk 0:02:46]}  O-O {[%clk 0:02:48]} 10. Re1 {[%clk 0:02:44]}  Be6 {[%clk 0:02:26]} 11. Bxe6 {[%clk 0:02:37]}  fxe6 {[%clk 0:02:27]} 12. e5 {[%clk 0:02:33]}  Qf5 {[%clk 0:02:13]} 13. Bd2 {[%clk 0:02:33]}  Bxd2 {[%clk 0:02:11]} 14. Qxd2 {[%clk 0:02:34]}  Rad8 {[%clk 0:02:09]} 15. Nc5 {[%clk 0:02:33]}  b6 {[%clk 0:02:04]} 16. Nd3 {[%clk 0:02:33]}  Nd5 {[%clk 0:02:03]} 17. Qc2 {[%clk 0:02:27]}  Ncb4 {[%clk 0:01:59]} 18. Nxb4 {[%clk 0:02:23]}  Nxb4 {[%clk 0:01:58]} 19. Qxc7 {[%clk 0:02:23]}  Nc2 {[%clk 0:01:52]} 20. g4 {[%clk 0:01:59]}  Qxf3 {[%clk 0:01:50]} 21. Qxc2 {[%clk 0:01:59]}  d3 {[%clk 0:01:33]} 22. Qd2 {[%clk 0:01:40]}  Qxh3 {[%clk 0:01:32]} 23. Re4 {[%clk 0:01:37]}  Rc8 {[%clk 0:01:09]} 24. Qe3 {[%clk 0:01:11]}  Qxe3 {[%clk 0:00:45]} 25. Rxe3 {[%clk 0:01:12]}  Rc2 {[%clk 0:00:45]} 26. Rxd3 {[%clk 0:01:08]}  Rfxf2 {[%clk 0:00:42]} 27. Rd8+ {[%clk 0:01:06]}  Kf7 {[%clk 0:00:42]} 28. Rf1 {[%clk 0:01:06]}  Rxf1+ {[%clk 0:00:42]} 29. Kxf1 {[%clk 0:01:06]}  Rxb2 {[%clk 0:00:41]} 30. a4 {[%clk 0:01:06]}  Rb4 {[%clk 0:00:35]} 31. Rd7+ {[%clk 0:01:03]}  Kg6 {[%clk 0:00:34]} 32. Rxa7 {[%clk 0:01:04]}  Rxg4 {[%clk 0:00:34]} 33. Kf2 {[%clk 0:01:05]}  Re4 {[%clk 0:00:31]} 34. Ra6 {[%clk 0:01:03]}  Rxe5 {[%clk 0:00:31]} 35. Rxb6 {[%clk 0:01:03]}  Kf6 {[%clk 0:00:30]} 36. Ra6 {[%clk 0:01:01]}  Re4 {[%clk 0:00:28]} 37. Ra8 {[%clk 0:01:02]}  h5 {[%clk 0:00:26]} 38. a5 {[%clk 0:01:02]}  Ra4 {[%clk 0:00:25]} 39. a6 {[%clk 0:00:59]}  Kg5 {[%clk 0:00:21]} 40. a7 {[%clk 0:00:58]}  g6 {[%clk 0:00:20]} 41. Kf3 {[%clk 0:00:57]}  e5 {[%clk 0:00:20]} 42. Ke3 {[%clk 0:00:56]}  h4 {[%clk 0:00:20]} 43. Kf3 {[%clk 0:00:56]}  Ra3+ {[%clk 0:00:19]} 44. Kg2 {[%clk 0:00:55]}  e4 {[%clk 0:00:18]} 45. Kf2 {[%clk 0:00:53]}  h3 {[%clk 0:00:17]} 46. Kg1 {[%clk 0:00:52]}  e3 {[%clk 0:00:16]} 47. Kh2 {[%clk 0:00:52]}  e2 {[%clk 0:00:10]} 48. Re8 {[%clk 0:00:51]}  Rxa7 {[%clk 0:00:07]} 49. Rxe2 {[%clk 0:00:51]}  Ra3 {[%clk 0:00:08]} 50. Re4 {[%clk 0:00:51]}  Kh5 {[%clk 0:00:07]} 51. Re8 {[%clk 0:00:49]}  g5 {[%clk 0:00:07]} 52. Rc8 {[%clk 0:00:46]}  Kh4 {[%clk 0:00:06]} 53. Rc4+ {[%clk 0:00:42]}  g4 {[%clk 0:00:06]} 54. Rb4 {[%clk 0:00:42]}  Ra2+ {[%clk 0:00:06]} 55. Kh1 {[%clk 0:00:39]}  Kg5 {[%clk 0:00:05]} 56. Rb5+ {[%clk 0:00:38]}  Kg6 {[%clk 0:00:04]} 57. Rb6+ {[%clk 0:00:38]}  Kg5 {[%clk 0:00:05]} 58. Rb5+ {[%clk 0:00:38]}  Kf4 {[%clk 0:00:05]} 59. Rb4+ {[%clk 0:00:38]}  Kf3 {[%clk 0:00:05]} 60. Rb3+ {[%clk 0:00:38]}  Kf2 {[%clk 0:00:00]} 61. Kh2 {[%clk 0:00:35]} 1-0


[Site "https://www.chess.com"]

[Event "Titled Tuesday Blitz July 11 Early 2023"]
[White "Herman, Daniel"]
[Black "Bruedigam, Martin"]
[WhiteFideId "30935008"]
[BlackFideId "24608033"]
[WhiteElo "2428"]
[BlackElo "2547"]
[Result "0-1"]
[Round "11"]
[TimeControl "180+2"]
[Date "2023.07.11"]
[WhiteClock "0:00:01"]
[BlackClock "0:00:56"]
[Board "81"]

1. d4 {[%clk 0:03:00]}  Nf6 {[%clk 0:02:59]} 2. Bg5 {[%clk 0:03:00]}  g6 {[%clk 0:02:57]} 3. Bxf6 {[%clk 0:02:59]}  exf6 {[%clk 0:02:58]} 4. e3 {[%clk 0:03:00]}  d5 {[%clk 0:02:56]} 5. c4 {[%clk 0:02:59]}  dxc4 {[%clk 0:02:54]} 6. Bxc4 {[%clk 0:03:00]}  Bd6 {[%clk 0:02:54]} 7. Nf3 {[%clk 0:02:54]}  O-O {[%clk 0:02:54]} 8. O-O {[%clk 0:02:54]}  f5 {[%clk 0:02:53]} 9. Nc3 {[%clk 0:02:52]}  c6 {[%clk 0:02:50]} 10. Rc1 {[%clk 0:02:40]}  Nd7 {[%clk 0:02:51]} 11. Qe2 {[%clk 0:02:21]}  Nf6 {[%clk 0:02:50]} 12. Ne5 {[%clk 0:02:19]}  Qe7 {[%clk 0:02:45]} 13. f4 {[%clk 0:02:15]}  Be6 {[%clk 0:02:34]} 14. a3 {[%clk 0:02:05]}  Kg7 {[%clk 0:02:16]} 15. b4 {[%clk 0:02:01]}  a5 {[%clk 0:02:15]} 16. Bxe6 {[%clk 0:02:01]}  Qxe6 {[%clk 0:02:15]} 17. Rb1 {[%clk 0:01:51]}  axb4 {[%clk 0:02:14]} 18. axb4 {[%clk 0:01:52]}  Nd5 {[%clk 0:02:05]} 19. Nxd5 {[%clk 0:01:46]}  Qxd5 {[%clk 0:02:00]} 20. Qc4 {[%clk 0:01:27]}  Ra3 {[%clk 0:01:48]} 21. b5 {[%clk 0:01:02]}  Rxe3 {[%clk 0:01:19]} 22. bxc6 {[%clk 0:00:57]}  Rxe5 {[%clk 0:01:18]} 23. Qxd5 {[%clk 0:00:43]}  Rxd5 {[%clk 0:01:19]} 24. cxb7 {[%clk 0:00:38]}  Rxd4 {[%clk 0:01:16]} 25. Rfd1 {[%clk 0:00:37]}  Rxd1+ {[%clk 0:01:14]} 26. Rxd1 {[%clk 0:00:37]}  Bxf4 {[%clk 0:01:15]} 27. g3 {[%clk 0:00:28]}  Be5 {[%clk 0:01:12]} 28. Rb1 {[%clk 0:00:23]}  Kf6 {[%clk 0:01:09]} 29. Kg2 {[%clk 0:00:17]}  Ke7 {[%clk 0:01:09]} 30. Re1 {[%clk 0:00:08]}  Kd6 {[%clk 0:01:08]} 31. h4 {[%clk 0:00:06]}  Rb8 {[%clk 0:01:07]} 32. Rd1+ {[%clk 0:00:07]}  Kc6 {[%clk 0:01:06]} 33. Re1 {[%clk 0:00:07]}  Bd6 {[%clk 0:01:06]} 34. Rc1+ {[%clk 0:00:07]}  Bc5 {[%clk 0:01:05]} 35. Kf3 {[%clk 0:00:07]}  Rxb7 {[%clk 0:01:02]} 36. g4 {[%clk 0:00:08]}  Rb3+ {[%clk 0:01:00]} 37. Kf4 {[%clk 0:00:08]}  Rb4+ {[%clk 0:01:00]} 38. Ke5 {[%clk 0:00:07]}  Rxg4 {[%clk 0:01:00]} 39. Kf6 {[%clk 0:00:07]}  Rxh4 {[%clk 0:00:59]} 40. Kxf7 {[%clk 0:00:07]}  Kd6 {[%clk 0:00:59]} 41. Rd1+ {[%clk 0:00:07]}  Bd4 {[%clk 0:00:59]} 42. Kg8 {[%clk 0:00:06]}  Kd5 {[%clk 0:00:59]} 43. Re1 {[%clk 0:00:05]}  f4 {[%clk 0:00:58]} 44. Re8 {[%clk 0:00:04]}  f3 {[%clk 0:00:58]} 45. Rf8 {[%clk 0:00:04]}  Ke4 {[%clk 0:00:57]} 46. Rf4+ {[%clk 0:00:01]}  Kxf4 {[%clk 0:00:56]} 0-1


[Site "https://www.chess.com"]

[Event "Titled Tuesday Blitz July 11 Early 2023"]
[White "Rom, Jasper"]
[Black "Palencia Morales, Wilson Guillermo"]
[WhiteFideId "2023733"]
[BlackFideId "4401859"]
[WhiteElo "2426"]
[BlackElo "2539"]
[Result "0-1"]
[Round "11"]
[TimeControl "180+2"]
[Date "2023.07.11"]
[WhiteClock "0:00:00"]
[BlackClock "0:01:54"]
[Board "82"]

1. e4 {[%clk 0:03:00]}  c5 {[%clk 0:02:59]} 2. Nc3 {[%clk 0:03:01]}  Nc6 {[%clk 0:02:58]} 3. f4 {[%clk 0:03:01]}  g6 {[%clk 0:02:58]} 4. Nf3 {[%clk 0:03:01]}  Bg7 {[%clk 0:02:58]} 5. Bb5 {[%clk 0:03:01]}  Nd4 {[%clk 0:02:58]} 6. O-O {[%clk 0:03:01]}  Nxb5 {[%clk 0:02:58]} 7. Nxb5 {[%clk 0:03:00]}  d6 {[%clk 0:02:59]} 8. d3 {[%clk 0:03:00]}  a6 {[%clk 0:02:59]} 9. Nc3 {[%clk 0:02:59]}  b5 {[%clk 0:03:00]} 10. Qe1 {[%clk 0:02:59]}  Bb7 {[%clk 0:02:59]} 11. f5 {[%clk 0:02:52]}  Nf6 {[%clk 0:02:59]} 12. Bd2 {[%clk 0:02:49]}  Qd7 {[%clk 0:02:55]} 13. a3 {[%clk 0:02:40]}  gxf5 {[%clk 0:02:54]} 14. e5 {[%clk 0:02:17]}  Nd5 {[%clk 0:02:49]} 15. Qg3 {[%clk 0:02:06]}  Rg8 {[%clk 0:02:49]} 16. exd6 {[%clk 0:01:54]}  Bd4+ {[%clk 0:02:46]} 17. Nxd4 {[%clk 0:01:17]}  Rxg3 {[%clk 0:02:45]} 18. hxg3 {[%clk 0:01:14]}  cxd4 {[%clk 0:02:43]} 19. Ne2 {[%clk 0:01:14]}  e5 {[%clk 0:02:42]} 20. c3 {[%clk 0:00:55]}  dxc3 {[%clk 0:02:40]} 21. bxc3 {[%clk 0:00:55]}  Rc8 {[%clk 0:02:32]} 22. Rac1 {[%clk 0:00:53]}  Nb6 {[%clk 0:02:25]} 23. Be3 {[%clk 0:00:45]}  Nd5 {[%clk 0:02:24]} 24. Bd2 {[%clk 0:00:43]}  Qc6 {[%clk 0:02:23]} 25. Rf2 {[%clk 0:00:38]}  e4 {[%clk 0:02:19]} 26. Nd4 {[%clk 0:00:36]}  Qb6 {[%clk 0:02:07]} 27. Rxf5 {[%clk 0:00:16]}  Nxc3 {[%clk 0:02:06]} 28. Be3 {[%clk 0:00:13]}  Nd5 {[%clk 0:01:57]} 29. Rxc8+ {[%clk 0:00:12]}  Bxc8 {[%clk 0:01:57]} 30. Re5+ {[%clk 0:00:10]}  Be6 {[%clk 0:01:55]} 31. Nf5 {[%clk 0:00:00]}  Nxe3 {[%clk 0:01:54]} 0-1


[Site "https://www.chess.com"]

[Event "Titled Tuesday Blitz July 11 Early 2023"]
[White "MAHanif"]
[Black "Korelskiy, Egor"]
[BlackFideId "34329064"]
[WhiteElo "2397"]
[BlackElo "2530"]
[Result "1-0"]
[Round "11"]
[TimeControl "180+2"]
[Date "2023.07.11"]
[WhiteClock "0:00:16"]
[BlackClock "0:00:05"]
[Board "84"]

1. d4 {[%clk 0:03:00]}  d5 {[%clk 0:02:59]} 2. Nf3 {[%clk 0:03:01]}  Nf6 {[%clk 0:02:58]} 3. g3 {[%clk 0:03:02]}  c5 {[%clk 0:02:57]} 4. Bg2 {[%clk 0:03:03]}  e6 {[%clk 0:02:57]} 5. c3 {[%clk 0:03:03]}  Nc6 {[%clk 0:02:56]} 6. O-O {[%clk 0:03:04]}  Bd6 {[%clk 0:02:56]} 7. Nbd2 {[%clk 0:03:02]}  O-O {[%clk 0:02:54]} 8. Nb3 {[%clk 0:03:02]}  b6 {[%clk 0:02:45]} 9. Bg5 {[%clk 0:03:01]}  Bb7 {[%clk 0:02:44]} 10. Re1 {[%clk 0:03:00]}  Be7 {[%clk 0:02:42]} 11. Bxf6 {[%clk 0:02:59]}  Bxf6 {[%clk 0:02:41]} 12. dxc5 {[%clk 0:02:59]}  Qc7 {[%clk 0:02:35]} 13. e4 {[%clk 0:02:53]}  dxe4 {[%clk 0:02:34]} 14. Nfd2 {[%clk 0:02:53]}  Rfd8 {[%clk 0:02:31]} 15. Qc2 {[%clk 0:02:52]}  Rac8 {[%clk 0:02:17]} 16. Bxe4 {[%clk 0:02:52]}  Ne5 {[%clk 0:02:10]} 17. Bxh7+ {[%clk 0:02:50]}  Kh8 {[%clk 0:02:09]} 18. cxb6 {[%clk 0:02:47]}  Qxb6 {[%clk 0:02:05]} 19. Be4 {[%clk 0:02:47]}  Ng4 {[%clk 0:01:56]} 20. Nf3 {[%clk 0:02:41]}  Ba6 {[%clk 0:01:47]} 21. Rad1 {[%clk 0:02:29]}  Bc4 {[%clk 0:01:38]} 22. Kg2 {[%clk 0:02:17]}  a5 {[%clk 0:01:26]} 23. Nbd4 {[%clk 0:01:44]}  Bxd4 {[%clk 0:01:06]} 24. Nxd4 {[%clk 0:01:41]}  f5 {[%clk 0:00:39]} 25. Bf3 {[%clk 0:01:37]}  Nf6 {[%clk 0:00:32]} 26. b3 {[%clk 0:01:34]}  Bd5 {[%clk 0:00:30]} 27. Bxd5 {[%clk 0:01:33]}  Rxd5 {[%clk 0:00:30]} 28. Nxe6 {[%clk 0:01:29]}  Rxd1 {[%clk 0:00:26]} 29. Qxd1 {[%clk 0:01:29]}  Ne4 {[%clk 0:00:26]} 30. Rxe4 {[%clk 0:01:06]}  fxe4 {[%clk 0:00:26]} 31. Qh5+ {[%clk 0:01:06]}  Kg8 {[%clk 0:00:26]} 32. Qg6 {[%clk 0:01:03]}  Qb7 {[%clk 0:00:20]} 33. Nxg7 {[%clk 0:00:56]}  e3+ {[%clk 0:00:20]} 34. f3 {[%clk 0:00:37]}  Qf7 {[%clk 0:00:19]} 35. Qg4 {[%clk 0:00:28]}  Rxc3 {[%clk 0:00:13]} 36. Ne6+ {[%clk 0:00:23]}  Kh8 {[%clk 0:00:11]} 37. Qd4+ {[%clk 0:00:18]}  Kg8 {[%clk 0:00:10]} 38. Qd8+ {[%clk 0:00:17]}  Kh7 {[%clk 0:00:10]} 39. Ng5+ {[%clk 0:00:17]}  Kg6 {[%clk 0:00:10]} 40. Nxf7 {[%clk 0:00:17]}  Rc2+ {[%clk 0:00:11]} 41. Kh3 {[%clk 0:00:17]}  e2 {[%clk 0:00:11]} 42. Qg5+ {[%clk 0:00:16]}  Kxf7 {[%clk 0:00:10]} 43. Qf5+ {[%clk 0:00:16]}  Kg7 {[%clk 0:00:08]} 44. Qe5+ {[%clk 0:00:15]}  Kh7 {[%clk 0:00:05]} 45. f4 {[%clk 0:00:16]} 1-0


[Site "https://www.chess.com"]

[Event "Titled Tuesday Blitz July 11 Early 2023"]
[White "Jaskolka, Tomasz"]
[Black "Lopez Idarraga, Daniel Eduardo"]
[WhiteFideId "1170791"]
[BlackFideId "4405501"]
[WhiteElo "2526"]
[BlackElo "2357"]
[Result "1-0"]
[Round "11"]
[TimeControl "180+2"]
[Date "2023.07.11"]
[WhiteClock "0:00:50"]
[BlackClock "0:02:24"]
[Board "85"]

1. e4 {[%clk 0:03:00]}  c5 {[%clk 0:02:59]} 2. Nf3 {[%clk 0:02:59]}  Nc6 {[%clk 0:03:00]} 3. d4 {[%clk 0:02:59]}  cxd4 {[%clk 0:03:01]} 4. Nxd4 {[%clk 0:03:00]}  Nf6 {[%clk 0:03:01]} 5. Nc3 {[%clk 0:03:00]}  e5 {[%clk 0:03:02]} 6. Ndb5 {[%clk 0:03:00]}  d6 {[%clk 0:03:02]} 7. Bg5 {[%clk 0:02:57]}  a6 {[%clk 0:03:03]} 8. Na3 {[%clk 0:02:57]}  b5 {[%clk 0:03:03]} 9. Nd5 {[%clk 0:02:53]}  Be7 {[%clk 0:03:03]} 10. Bxf6 {[%clk 0:02:53]}  Bxf6 {[%clk 0:03:04]} 11. c4 {[%clk 0:02:53]}  b4 {[%clk 0:02:58]} 12. Nc2 {[%clk 0:02:53]}  O-O {[%clk 0:02:58]} 13. Ncxb4 {[%clk 0:02:42]}  Nxb4 {[%clk 0:02:52]} 14. Nxb4 {[%clk 0:02:43]}  Qb6 {[%clk 0:02:53]} 15. Qd2 {[%clk 0:02:20]}  Rb8 {[%clk 0:02:53]} 16. Nd3 {[%clk 0:02:13]}  Be6 {[%clk 0:02:52]} 17. b3 {[%clk 0:02:10]}  Qd4 {[%clk 0:02:52]} 18. Rd1 {[%clk 0:01:51]}  Qxe4+ {[%clk 0:02:53]} 19. Qe3 {[%clk 0:01:40]}  Qxe3+ {[%clk 0:02:52]} 20. fxe3 {[%clk 0:01:41]}  d5 {[%clk 0:02:52]} 21. Nc5 {[%clk 0:01:33]}  dxc4 {[%clk 0:02:47]} 22. Nxe6 {[%clk 0:01:32]}  fxe6 {[%clk 0:02:48]} 23. Bxc4 {[%clk 0:01:33]}  Bh4+ {[%clk 0:02:41]} 24. g3 {[%clk 0:01:31]}  Bg5 {[%clk 0:02:42]} 25. Ke2 {[%clk 0:01:27]}  Kf7 {[%clk 0:02:40]} 26. Rd7+ {[%clk 0:01:24]}  Kg6 {[%clk 0:02:36]} 27. h4 {[%clk 0:01:13]}  Bh6 {[%clk 0:02:24]} 28. g4 {[%clk 0:00:50]} 1-0


[Site "https://www.chess.com"]

[Event "Titled Tuesday Blitz July 11 Early 2023"]
[White "Chen, Max"]
[Black "Shapiro, Daniel"]
[WhiteFideId "2622440"]
[BlackFideId "2001780"]
[WhiteElo "2519"]
[BlackElo "2353"]
[Result "1-0"]
[Round "11"]
[TimeControl "180+2"]
[Date "2023.07.11"]
[WhiteClock "0:00:09"]
[BlackClock "0:00:00"]
[Board "86"]

1. e4 {[%clk 0:02:58]}  e5 {[%clk 0:02:59]} 2. Nf3 {[%clk 0:02:58]}  Nc6 {[%clk 0:03:00]} 3. Bc4 {[%clk 0:02:56]}  Be7 {[%clk 0:02:59]} 4. O-O {[%clk 0:02:55]}  d6 {[%clk 0:02:59]} 5. h3 {[%clk 0:02:48]}  Nf6 {[%clk 0:02:58]} 6. Re1 {[%clk 0:02:48]}  O-O {[%clk 0:02:58]} 7. d4 {[%clk 0:02:48]}  exd4 {[%clk 0:02:55]} 8. Nxd4 {[%clk 0:02:48]}  Bd7 {[%clk 0:02:56]} 9. Nc3 {[%clk 0:02:43]}  Re8 {[%clk 0:02:56]} 10. Bg5 {[%clk 0:02:39]}  h6 {[%clk 0:02:43]} 11. Bh4 {[%clk 0:02:38]}  Nxe4 {[%clk 0:02:20]} 12. Nxc6 {[%clk 0:01:23]}  Bxc6 {[%clk 0:02:12]} 13. Qh5 {[%clk 0:01:23]}  Bxh4 {[%clk 0:01:50]} 14. Bxf7+ {[%clk 0:01:19]}  Kf8 {[%clk 0:01:50]} 15. Bxe8 {[%clk 0:01:12]}  Bxe8 {[%clk 0:01:43]} 16. Qf5+ {[%clk 0:00:59]}  Qf6 {[%clk 0:01:22]} 17. Qxf6+ {[%clk 0:00:43]}  Bxf6 {[%clk 0:00:58]} 18. Nxe4 {[%clk 0:00:39]}  Bxb2 {[%clk 0:00:58]} 19. Rab1 {[%clk 0:00:39]}  Bd4 {[%clk 0:00:59]} 20. Rxb7 {[%clk 0:00:38]}  Bb6 {[%clk 0:00:59]} 21. c4 {[%clk 0:00:07]}  Bc6 {[%clk 0:00:59]} 22. Rxb6 {[%clk 0:00:08]}  axb6 {[%clk 0:00:59]} 23. Nc3 {[%clk 0:00:08]}  Ra3 {[%clk 0:00:57]} 24. Re3 {[%clk 0:00:08]}  Be8 {[%clk 0:00:51]} 25. Nd5 {[%clk 0:00:04]}  Rxe3 {[%clk 0:00:41]} 26. fxe3 {[%clk 0:00:04]}  Bf7 {[%clk 0:00:38]} 27. Nxc7 {[%clk 0:00:03]}  Bxc4 {[%clk 0:00:37]} 28. Na8 {[%clk 0:00:03]}  b5 {[%clk 0:00:35]} 29. a3 {[%clk 0:00:04]}  Ke7 {[%clk 0:00:33]} 30. Nb6 {[%clk 0:00:02]}  Kd8 {[%clk 0:00:31]} 31. Kf2 {[%clk 0:00:03]}  Kc7 {[%clk 0:00:31]} 32. Nxc4 {[%clk 0:00:03]}  bxc4 {[%clk 0:00:31]} 33. Ke1 {[%clk 0:00:04]}  Kb6 {[%clk 0:00:31]} 34. Kd2 {[%clk 0:00:05]}  Kb5 {[%clk 0:00:31]} 35. Kc3 {[%clk 0:00:05]}  d5 {[%clk 0:00:32]} 36. Kd4 {[%clk 0:00:05]}  Ka4 {[%clk 0:00:31]} 37. e4 {[%clk 0:00:06]}  dxe4 {[%clk 0:00:31]} 38. Kxc4 {[%clk 0:00:06]}  Kxa3 {[%clk 0:00:30]} 39. Kd4 {[%clk 0:00:07]}  Kb4 {[%clk 0:00:30]} 40. Kxe4 {[%clk 0:00:07]}  Kc4 {[%clk 0:00:31]} 41. Kf5 {[%clk 0:00:08]}  Kd3 {[%clk 0:00:31]} 42. Kg6 {[%clk 0:00:08]}  Ke3 {[%clk 0:00:32]} 43. Kxg7 {[%clk 0:00:08]}  Kf2 {[%clk 0:00:32]} 44. g4 {[%clk 0:00:08]}  Kg3 {[%clk 0:00:00]} 45. Kxh6 {[%clk 0:00:09]} 1-0


[Site "https://www.chess.com"]

[Event "Titled Tuesday Blitz July 11 Early 2023"]
[White "Vifleemskaia, Svetlana"]
[Black "Yeritsyan, Hayk"]
[WhiteFideId "4129490"]
[BlackFideId "13307320"]
[WhiteElo "2334"]
[BlackElo "2515"]
[Result "0-1"]
[Round "11"]
[TimeControl "180+2"]
[Date "2023.07.11"]
[WhiteClock "0:00:00"]
[BlackClock "0:00:15"]
[Board "87"]

1. d4 {[%clk 0:03:00]}  d5 {[%clk 0:02:56]} 2. c4 {[%clk 0:03:00]}  e6 {[%clk 0:02:56]} 3. Nc3 {[%clk 0:02:59]}  dxc4 {[%clk 0:02:57]} 4. e4 {[%clk 0:02:58]}  a6 {[%clk 0:02:54]} 5. Bxc4 {[%clk 0:02:55]}  b5 {[%clk 0:02:54]} 6. Bd3 {[%clk 0:02:49]}  Bb7 {[%clk 0:02:53]} 7. Nf3 {[%clk 0:02:47]}  Nf6 {[%clk 0:02:52]} 8. Qe2 {[%clk 0:02:46]}  Be7 {[%clk 0:02:49]} 9. O-O {[%clk 0:02:45]}  O-O {[%clk 0:02:50]} 10. a3 {[%clk 0:02:42]}  c5 {[%clk 0:02:49]} 11. Rd1 {[%clk 0:02:42]}  cxd4 {[%clk 0:02:47]} 12. Bc2 {[%clk 0:02:40]}  e5 {[%clk 0:02:26]} 13. Nd5 {[%clk 0:02:20]}  Nxd5 {[%clk 0:02:21]} 14. exd5 {[%clk 0:02:19]}  f6 {[%clk 0:02:21]} 15. Bb3 {[%clk 0:02:11]}  Bxd5 {[%clk 0:02:12]} 16. Nxd4 {[%clk 0:02:01]}  Bxb3 {[%clk 0:01:46]} 17. Nxb3 {[%clk 0:01:59]}  Qe8 {[%clk 0:01:42]} 18. Be3 {[%clk 0:01:49]}  Nc6 {[%clk 0:01:38]} 19. Rac1 {[%clk 0:01:47]}  Rd8 {[%clk 0:01:37]} 20. Rxd8 {[%clk 0:01:44]}  Nxd8 {[%clk 0:01:34]} 21. Qc2 {[%clk 0:01:21]}  Ne6 {[%clk 0:01:26]} 22. Qc6 {[%clk 0:01:20]}  Qf7 {[%clk 0:00:37]} 23. Qxa6 {[%clk 0:01:15]}  Nf4 {[%clk 0:00:37]} 24. Bxf4 {[%clk 0:01:09]}  Qxb3 {[%clk 0:00:36]} 25. Be3 {[%clk 0:00:56]}  Qxb2 {[%clk 0:00:26]} 26. g3 {[%clk 0:00:26]}  Bxa3 {[%clk 0:00:15]} 27. Rc7 {[%clk 0:00:24]}  Qb1+ {[%clk 0:00:08]} 28. Kg2 {[%clk 0:00:23]}  Qe4+ {[%clk 0:00:09]} 29. Kh3 {[%clk 0:00:21]}  Qf5+ {[%clk 0:00:07]} 30. Kg2 {[%clk 0:00:21]}  b4 {[%clk 0:00:07]} 31. Qb7 {[%clk 0:00:19]}  Qg6 {[%clk 0:00:07]} 32. h4 {[%clk 0:00:18]}  h5 {[%clk 0:00:07]} 33. Bc5 {[%clk 0:00:18]}  Re8 {[%clk 0:00:06]} 34. Bxb4 {[%clk 0:00:18]}  Bxb4 {[%clk 0:00:05]} 35. Qxb4 {[%clk 0:00:19]}  Kh7 {[%clk 0:00:05]} 36. Qb7 {[%clk 0:00:17]}  Rd8 {[%clk 0:00:04]} 37. Qc6 {[%clk 0:00:15]}  Rd4 {[%clk 0:00:04]} 38. Kh2 {[%clk 0:00:11]}  Rd2 {[%clk 0:00:04]} 39. Kg2 {[%clk 0:00:11]}  Qf5 {[%clk 0:00:03]} 40. Qf3 {[%clk 0:00:08]}  Qxf3+ {[%clk 0:00:03]} 41. Kxf3 {[%clk 0:00:09]}  Rd4 {[%clk 0:00:03]} 42. Re7 {[%clk 0:00:08]}  Kg6 {[%clk 0:00:04]} 43. Rc7 {[%clk 0:00:08]}  Rb4 {[%clk 0:00:04]} 44. Rd7 {[%clk 0:00:07]}  Rb3+ {[%clk 0:00:04]} 45. Kg2 {[%clk 0:00:07]}  Rb4 {[%clk 0:00:04]} 46. Re7 {[%clk 0:00:06]}  Rb6 {[%clk 0:00:04]} 47. Kf3 {[%clk 0:00:06]}  Ra6 {[%clk 0:00:04]} 48. Kg2 {[%clk 0:00:06]}  Ra4 {[%clk 0:00:04]} 49. Kf3 {[%clk 0:00:06]}  Rd4 {[%clk 0:00:05]} 50. Kg2 {[%clk 0:00:06]}  Rd8 {[%clk 0:00:05]} 51. Kf3 {[%clk 0:00:06]}  Kh7 {[%clk 0:00:05]} 52. Kg2 {[%clk 0:00:04]}  Kg8 {[%clk 0:00:06]} 53. Kf3 {[%clk 0:00:05]}  Rf8 {[%clk 0:00:06]} 54. Rd7 {[%clk 0:00:04]}  Rf7 {[%clk 0:00:07]} 55. Rd8+ {[%clk 0:00:04]}  Kh7 {[%clk 0:00:07]} 56. Rd6 {[%clk 0:00:05]}  g6 {[%clk 0:00:07]} 57. Rd8 {[%clk 0:00:05]}  Kg7 {[%clk 0:00:08]} 58. Rd6 {[%clk 0:00:05]}  Ra7 {[%clk 0:00:08]} 59. Rd8 {[%clk 0:00:04]}  Kf7 {[%clk 0:00:08]} 60. Rd6 {[%clk 0:00:04]}  Ke7 {[%clk 0:00:08]} 61. Rb6 {[%clk 0:00:04]}  Rd7 {[%clk 0:00:08]} 62. Ra6 {[%clk 0:00:04]}  Rd6 {[%clk 0:00:08]} 63. Ra7+ {[%clk 0:00:04]}  Ke6 {[%clk 0:00:09]} 64. Ra8 {[%clk 0:00:05]}  Kf5 {[%clk 0:00:10]} 65. Ra4 {[%clk 0:00:04]}  Rd3+ {[%clk 0:00:09]} 66. Kg2 {[%clk 0:00:04]}  Rd4 {[%clk 0:00:10]} 67. Ra5 {[%clk 0:00:04]}  g5 {[%clk 0:00:11]} 68. hxg5 {[%clk 0:00:03]}  Kxg5 {[%clk 0:00:11]} 69. Ra8 {[%clk 0:00:03]}  Kf5 {[%clk 0:00:12]} 70. Rh8 {[%clk 0:00:03]}  Kg5 {[%clk 0:00:12]} 71. Rg8+ {[%clk 0:00:03]}  Kh6 {[%clk 0:00:12]} 72. Rh8+ {[%clk 0:00:03]}  Kg6 {[%clk 0:00:12]} 73. Rg8+ {[%clk 0:00:03]}  Kh7 {[%clk 0:00:13]} 74. Rf8 {[%clk 0:00:04]}  Kg7 {[%clk 0:00:13]} 75. Rc8 {[%clk 0:00:03]}  h4 {[%clk 0:00:13]} 76. gxh4 {[%clk 0:00:03]}  Rxh4 {[%clk 0:00:14]} 77. Kg3 {[%clk 0:00:04]}  Rf4 {[%clk 0:00:14]} 78. Rc7+ {[%clk 0:00:03]}  Kg6 {[%clk 0:00:15]} 79. Rc8 {[%clk 0:00:04]}  Kf5 {[%clk 0:00:15]} 80. Rf8 {[%clk 0:00:04]}  Ra4 {[%clk 0:00:15]} 81. Kf3 {[%clk 0:00:04]}  Ra3+ {[%clk 0:00:16]} 82. Kg2 {[%clk 0:00:04]}  e4 {[%clk 0:00:16]} 83. Re8 {[%clk 0:00:04]}  Kf4 {[%clk 0:00:16]} 84. Re6 {[%clk 0:00:03]}  f5 {[%clk 0:00:16]} 85. Rc6 {[%clk 0:00:02]}  Ra2 {[%clk 0:00:16]} 86. Rc3 {[%clk 0:00:02]}  Rb2 {[%clk 0:00:16]} 87. Ra3 {[%clk 0:00:01]}  Kg4 {[%clk 0:00:16]} 88. Rg3+ {[%clk 0:00:01]}  Kf4 {[%clk 0:00:16]} 89. Ra3 {[%clk 0:00:01]}  Kg5 {[%clk 0:00:15]} 90. Rg3+ {[%clk 0:00:01]}  Kf6 {[%clk 0:00:15]} 91. Ra3 {[%clk 0:00:02]}  f4 {[%clk 0:00:15]} 92. Ra5 {[%clk 0:00:02]}  e3 {[%clk 0:00:15]} 93. Ra6+ {[%clk 0:00:02]}  Kf5 {[%clk 0:00:15]} 94. Ra5+ {[%clk 0:00:00]}  Kg4 {[%clk 0:00:15]} 0-1


[Site "https://www.chess.com"]